bitfinex-derivatives/quotes_SOLF0:USTF0_20240827
["timestamp","ask_amount","ask_price","bid_price","bid_amount"]
[1724737534379,3.1351,159.45,159.38,2.4549]
[1724737534380,3.1351,159.45,159.4,3.1358]
[1724737534579,3.94,159.49,159.38,2.4549]
[1724737534892,3.18309855,159.44,159.41,0.0478316]
[1724737535188,0.04779855,159.44,159.41,0.0478316]
[1724737535891,0.04779855,159.44,159.41,3.1835316]
[1724737536991,0.04779855,159.44,159.41,0.0478316]
[1724737537787,19.25,159.43,159.34,4.3834]
[1724737537985,19.25,159.4,159.34,1.2464]
[1724737538182,19.25,159.38,159.34,1.2464]
[1724737538584,19.25,159.38,159.3,3.94]
[1724737538787,19.25,159.38,159.26,1.3062]
[1724737538788,22.43330789,159.36,159.32,0.04513519]
[1724737538987,0.04640789,159.36,159.32,0.04515503]
[1724737539393,0.04640789,159.36,159.34,3.1371]
[1724737541793,19.25,159.43,159.33,19.25]
[1724737541994,19.25,159.43,159.35,19.25]
[1724737542896,0.0397701,159.41,159.37,0.04375151]
[1724737543289,0.0397701,159.41,159.37,3.18025151]
[1724737544600,0.0397701,159.41,159.38,3.1363]
[1724737545495,0.0397701,159.41,159.37,3.18025151]
[1724737545695,3.1755701,159.41,159.37,3.18025151]
[1724737545900,0.0397701,159.41,159.37,0.04375151]
[1724737547200,3.136,159.4,159.37,0.04375151]
[1724737551900,19.25,159.39,159.37,0.04375151]
[1724737552498,19.2897701,159.41,159.37,0.04375151]
[1724737553097,3.136,159.4,159.37,0.04375151]
[1724737553301,0.0397701,159.41,159.37,0.04375151]
[1724737554504,0.0397701,159.41,159.38,3.1362]
[1724737555904,3.1754701,159.41,159.38,3.1362]
[1724737556602,3.1754701,159.41,159.37,3.18025151]
[1724737558008,3.1359,159.4,159.37,0.04375151]
[1724737559698,3.1755701,159.41,159.37,0.04375151]
[1724737560105,0.0397701,159.41,159.37,3.18025151]
[1724737560300,0.0397701,159.41,159.37,0.04375151]
[1724737560906,0.0397701,159.41,159.38,3.1363]
[1724737562501,0.0397701,159.41,159.37,3.18025151]
[1724737562707,0.0397701,159.41,159.37,0.04375151]
[1724737562911,19.25,159.4,159.37,0.04375151]
[1724737564407,3.1361,159.39,159.37,0.04375151]
[1724737565013,0.0397701,159.41,159.37,0.04375151]
[1724737566114,0.0397701,159.41,159.38,3.1362]
[1724737567613,22.4256701,159.41,159.37,3.18025151]
[1724737570314,19.25,159.39,159.37,0.04375151]
[1724737570912,22.3863,159.39,159.37,0.04375151]
[1724737574413,3.1363,159.38,159.37,0.04375151]
[1724737574607,19.25,159.39,159.32,1.202]
[1724737574914,19.25,159.36,159.32,1.202]
[1724737575513,19.29756524,159.36,159.32,1.24294552]
[1724737576316,3.1369,159.35,159.32,0.04094552]
[1724737576821,22.42221477,159.36,159.32,0.04094552]
[1724737578015,19.25,159.34,159.32,0.04094552]
[1724737578823,3.1373,159.33,159.32,0.04094552]
[1724737581017,3.1376,159.32,159.28,3.1382]
[1724737581222,19.25,159.3,159.24,4.02]
[1724737581624,22.3881,159.3,159.26,3.1386]
[1724737581925,19.25,159.28,159.22,5.2605]
[1724737582221,0.04659164,159.27,159.26,0.04567649]
[1724737590930,19.29659164,159.27,159.26,0.04567649]
[1724737591519,0.04659164,159.27,159.26,0.04567649]
[1724737591926,3.18509164,159.27,159.26,0.04567649]
[1724737594229,0.04659164,159.27,159.26,0.04567649]
[1724737595425,3.18509164,159.27,159.26,0.04567649]
[1724737598734,0.04659164,159.27,159.26,0.04567649]
[1724737599237,4.02,159.34,159.26,0.04567649]
[1724737599432,19.25,159.34,159.25,19.25]
[1724737599636,19.25,159.34,159.3,3.1379]
[1724737599828,3.1373,159.33,159.3,3.1379]
[1724737600335,3.17913715,159.33,159.3,3.17784786]
[1724737600935,22.3875,159.32,159.3,0.03994786]
[1724737601238,19.25,159.32,159.3,0.03994786]
[1724737601732,3.1377,159.31,159.3,0.03994786]
[1724737606435,22.3875,159.32,159.3,0.03994786]
[1724737608140,7.71,159.31,159.3,0.03994786]
[1724737608548,0.04183715,159.33,159.3,0.03994786]
[1724737608939,0.04183715,159.33,159.32,3.1375]
[1724737612741,0.04183715,159.33,159.31,3.1377]
[1724737612943,0.04183715,159.33,159.3,0.03994786]
[1724737613347,3.17923715,159.33,159.3,0.03994786]
[1724737614153,3.17923715,159.33,159.3,3.17774786]
[1724737615750,3.1376,159.32,159.3,0.03994786]
[1724737615943,19.33183715,159.33,159.3,0.03994786]
[1724737616357,22.46923715,159.33,159.3,0.03994786]
[1724737616947,3.1375,159.32,159.3,0.03994786]
[1724737618150,22.46923715,159.33,159.3,0.03994786]
[1724737619248,19.33183715,159.33,159.3,0.03994786]
[1724737619848,3.1376,159.32,159.3,0.03994786]
[1724737622652,0.04183715,159.33,159.3,0.03994786]
[1724737623251,0.04183715,159.33,159.32,3.1375]
[1724737625665,3.1366,159.37,159.33,3.1372]
[1724737626568,3.18402894,159.37,159.33,3.18304903]
[1724737627866,3.18402894,159.37,159.34,3.1371]
[1724737629768,3.18402894,159.37,159.33,3.18314903]
[1724737629968,3.1367,159.36,159.33,3.18314903]
[1724737630170,0.04742894,159.37,159.33,3.18314903]
[1724737631270,3.18402894,159.37,159.33,3.18314903]
[1724737632069,10.89402894,159.37,159.33,3.18314903]
[1724737632467,3.1367,159.36,159.33,3.18314903]
[1724737632869,3.1367,159.36,159.33,0.04584903]
[1724737633573,7.71,159.36,159.33,0.04584903]
[1724737634274,3.1369,159.35,159.33,0.04584903]
[1724737635572,3.23094977,159.37,159.33,0.04584903]
[1724737635573,10.8471,159.34,159.33,0.04584903]
[1724737637364,3.1377,159.32,159.28,3.1382]
[1724737637570,7.71,159.31,159.28,3.1382]
[1724737638269,7.75538302,159.31,159.28,3.18395429]
[1724737641474,7.71,159.29,159.28,0.04575429]
[1724737643383,10.8481,159.29,159.28,0.04575429]
[1724737645283,14.04494285,159.29,159.28,0.04575429]
[1724737646278,10.8481,159.29,159.28,0.04575429]
[1724737646682,3.18328302,159.31,159.28,0.04575429]
[1724737646883,0.04538302,159.31,159.28,7.75575429]
[1724737647574,0.04538302,159.31,159.28,10.89385429]
[1724737647881,0.04538302,159.31,159.28,0.04575429]
[1724737648281,3.18318302,159.31,159.28,0.04575429]
[1724737648784,7.71,159.3,159.28,0.04575429]
[1724737649085,3.1381,159.29,159.28,0.04575429]
[1724737650189,10.8479,159.3,159.28,0.04575429]
[1724737651987,3.1379,159.3,159.28,0.04575429]
[1724737652188,0.04538302,159.31,159.28,3.18405429]
[1724737652578,0.04538302,159.31,159.28,0.04575429]
[1724737652781,0.04538302,159.31,159.29,3.138]
[1724737668711,0.04538302,159.31,159.3,3.1379]
[1724737669012,0.04538302,159.31,159.3,10.8479]
[1724737669804,0.04538302,159.31,159.3,3.1379]
[1724737671210,0.04538302,159.31,159.29,3.138]
[1724737676316,0.04538302,159.31,159.3,3.1379]
[1724737676507,7.71,159.37,159.31,7.71]
[1724737676911,3.1363,159.38,159.33,7.71]
[1724737677116,3.1363,159.38,159.33,8.9077]
[1724737677416,0.04190619,159.37,159.36,3.1366]
[1724737677614,25.1,159.47,159.36,7.71]
[1724737677615,4.45603232,159.45,159.36,7.71]
[1724737677811,4.45603232,159.45,159.39,7.71]
[1724737677812,3.19863232,159.45,159.39,7.71]
[1724737678008,0.9254,159.51,159.39,7.71]
[1724737678009,6.9949,159.46,159.39,7.71]
[1724737678211,14.7049,159.46,159.39,7.71]
[1724737678511,14.7049,159.46,159.36,3.86]
[1724737678512,3.1346,159.47,159.42,3.1354]
[1724737678715,0.04490572,159.46,159.43,0.0479574]
[1724737680014,3.17970572,159.46,159.43,0.0479574]
[1724737680219,0.04490572,159.46,159.43,0.0479574]
[1724737681221,0.04490572,159.46,159.43,3.1832574]
[1724737689516,0.04490572,159.46,159.43,7.7579574]
[1724737690115,0.04490572,159.46,159.44,3.135]
[1724737693522,0.04490572,159.46,159.45,3.1349]
[1724737700428,0.04490572,159.46,159.44,3.1351]
[1724737702234,3.17970572,159.46,159.43,3.1831574]
[1724737703029,3.135,159.45,159.43,0.0479574]
[1724737706640,3.17960572,159.46,159.43,0.0479574]
[1724737706824,0.04490572,159.46,159.43,0.0479574]
[1724737708839,3.17980572,159.46,159.43,0.0479574]
[1724737709738,0.04490572,159.46,159.43,3.1832574]
[1724737713941,0.04490572,159.46,159.43,7.7579574]
[1724737714139,0.04490572,159.46,159.44,7.71]
[1724737715146,0.04490572,159.46,159.45,3.1349]
[1724737723846,0.04490572,159.46,159.43,0.0479574]
[1724737724261,0.04490572,159.46,159.43,3.1831574]
[1724737728259,0.04490572,159.46,159.44,3.1351]
[1724737728447,0.04490572,159.46,159.45,7.71]
[1724737729654,0.04490572,159.46,159.45,3.1349]
[1724737731164,0.04490572,159.46,159.45,10.8449]
[1724737733761,0.04490572,159.46,159.45,3.1349]
[1724737736959,0.04490572,159.46,159.43,0.0479574]
[1724737737262,7.75490572,159.46,159.43,0.0479574]
[1724737738267,7.75490572,159.46,159.43,3.1831574]
[1724737739562,0.04490572,159.46,159.43,3.1831574]
[1724737740364,0.04490572,159.46,159.44,3.1351]
[1724737741776,0.04490572,159.46,159.45,3.1349]
[1724737742263,0.04490572,159.46,159.45,10.8449]
[1724737742471,59.48973356,159.52,159.47,7.71]
[1724737743261,3.1338,159.51,159.48,3.1343]
[1724737743462,3.17538171,159.51,159.48,3.1743382]
[1724737744468,0.04158171,159.51,159.49,3.1341]
[1724737747262,0.04158171,159.51,159.5,3.134]
[1724737747467,0.04158171,159.51,159.5,10.844]
[1724737747676,224.0,159.67,159.5,10.7572832]
[1724737747677,8.9851,159.58,159.5,10.7572832]
[1724737747875,3.1331,159.55,159.51,3.1337]
[1724737748071,8.9851,159.58,159.49,7.71]
[1724737748072,7.71,159.56,159.49,7.71]
[1724737748668,0.04064973,159.54,159.51,0.0459902]
[1724737748877,7.75064973,159.54,159.51,0.0459902]
[1724737749470,3.1335,159.53,159.51,0.0459902]
[1724737755878,3.1336,159.52,159.51,0.0459902]
[1724737756487,3.1334,159.53,159.51,0.0459902]
[1724737758383,7.75064973,159.54,159.51,0.0459902]
[1724737758384,3.1336,159.52,159.51,0.0459902]
[1724737760580,3.1344,159.48,159.44,3.74]
[1724737761390,3.1344,159.48,159.45,3.1349]
[1724737761588,3.1344,159.48,159.44,3.74]
[1724737761589,7.74967146,159.48,159.44,0.04043323]
[1724737761789,7.71,159.46,159.44,0.04043323]
[1724737762191,3.1349,159.45,159.44,0.04043323]
[1724737762393,7.71,159.46,159.44,0.04043323]
[1724737763387,10.8448,159.46,159.44,0.04043323]
[1724737765385,3.1349,159.45,159.44,0.04043323]
[1724737769298,10.8448,159.46,159.44,0.04043323]
[1724737771705,3.1349,159.45,159.44,0.04043323]
[1724737772395,7.71,159.46,159.44,0.04043323]
[1724737772999,3.1347,159.47,159.44,0.04043323]
[1724737773592,3.17407146,159.48,159.44,0.04043323]
[1724737773797,3.17407146,159.48,159.44,7.75043323]
[1724737773988,0.03967146,159.48,159.44,7.75043323]
[1724737774190,0.03967146,159.48,159.46,7.71]
[1724737774394,0.03967146,159.48,159.47,7.71]
[1724737774701,3.1335,159.53,159.49,3.134]
[1724737775294,3.1335,159.53,159.49,7.71]
[1724737775802,3.18024749,159.53,159.49,7.75068419]
[1724737776400,3.18024749,159.53,159.49,10.88468419]
[1724737777000,3.18024749,159.53,159.49,3.17468419]
[1724737783302,3.18024749,159.53,159.5,3.1339]
[1724737784310,3.18024749,159.53,159.49,3.17478419]
[1724737788809,10.8436,159.52,159.49,0.04068419]
[1724737790104,3.20869569,159.53,159.49,0.04068419]
[1724737790105,7.71,159.51,159.49,0.04068419]
[1724737790505,0.04674749,159.53,159.49,0.04068419]
[1724737791009,3.1291559,159.53,159.49,0.04068419]
[1724737791708,0.04674749,159.53,159.49,0.04068419]
[1724737792307,3.18014749,159.53,159.5,3.1339]
[1724737795105,3.1337,159.52,159.49,3.17478419]
[1724737795308,3.19227959,159.53,159.49,3.17478419]
[1724737795511,0.04674749,159.53,159.49,3.17478419]
[1724737797313,3.18014749,159.53,159.5,3.1339]
[1724737799908,0.04674749,159.53,159.5,3.1339]
[1724737800509,0.04674749,159.53,159.49,7.75068419]
[1724737800715,0.04674749,159.53,159.51,7.71]
[1724737801715,0.04674749,159.53,159.52,3.1336]
[1724737802309,0.04674749,159.53,159.51,10.8437]
[1724737802707,0.04674749,159.53,159.51,7.71]
[1724737804412,0.04674749,159.53,159.52,3.1336]
[1724737805814,0.04674749,159.53,159.51,3.1337]
[1724737806219,0.04674749,159.53,159.51,10.8437]
[1724737808125,0.04674749,159.53,159.52,3.1336]
[1724737808323,0.04674749,159.53,159.52,10.8436]
[1724737810923,11.45,159.6,159.52,7.71]
[1724737811121,100.25887645,159.67,159.57,7.71]
[1724737811421,3.1317,159.62,159.59,7.71]
[1724737812021,7.71,159.65,159.59,7.71]
[1724737812525,3.1315,159.63,159.58,3.17426368]
[1724737813227,3.1316,159.62,159.58,3.17426368]
[1724737813428,7.71,159.62,159.58,0.04196368]
[1724737814228,72.76619438,159.61,159.58,0.04196368]
[1724737815428,69.67566491,159.61,159.58,0.04196368]
[1724737815929,72.74674324,159.61,159.58,0.04196368]
[1724737818324,7.71,159.6,159.58,0.04196368]
[1724737818923,3.1322,159.59,159.58,0.04196368]
[1724737821126,7.71,159.59,159.42,6.2707]
[1724737821323,73.33494324,159.61,159.5,7.71]
[1724737821324,7.71,159.57,159.5,7.71]
[1724737821529,7.71,159.58,159.52,7.71]
[1724737822231,0.04402664,159.57,159.54,7.71]
[1724737822536,0.04402664,159.57,159.55,7.71]
[1724737822930,0.04402664,159.57,159.55,10.8429]
[1724737825635,0.04402664,159.57,159.55,7.71]
[1724737826025,0.04402664,159.57,159.53,0.04128513]
[1724737827030,3.17662664,159.57,159.53,0.04128513]
[1724737827326,0.04402664,159.57,159.53,0.04128513]
[1724737828436,3.1328,159.56,159.53,0.04128513]
[1724737829230,0.04402664,159.57,159.53,0.04128513]
[1724737830336,3.1331,159.55,159.53,0.04128513]
[1724737834345,7.71,159.56,159.53,0.04128513]
[1724737834346,3.1332,159.54,159.53,0.04128513]
[1724737836443,3.133,159.55,159.53,0.04128513]
[1724737837337,3.1328,159.56,159.53,0.04128513]
[1724737837542,3.1328,159.56,159.53,3.17458513]
[1724737837740,0.04402664,159.57,159.53,3.17458513]
[1724737837940,3.17672664,159.57,159.53,3.17458513]
[1724737838246,0.04402664,159.57,159.53,3.17458513]
[1724737839347,3.1328,159.56,159.53,3.17458513]
[1724737840649,0.04402664,159.57,159.53,0.04128513]
[1724737840848,0.04402664,159.57,159.54,7.71]
[1724737841044,0.04402664,159.57,159.53,0.04128513]
[1724737841045,0.04402664,159.57,159.53,3.76128513]
[1724737841243,0.04402664,159.57,159.56,3.1328]
[1724737842849,69.61494324,159.61,159.59,3.1322]
[1724737843048,4.9515,159.64,159.59,3.1322]
[1724737843255,7.71,159.63,159.59,3.1322]
[1724737843553,10.86962114,159.63,159.59,3.1322]
[1724737843854,14.00112114,159.63,159.59,3.1322]
[1724737844056,14.00112114,159.63,159.59,3.17939679]
[1724737844254,7.71,159.62,159.59,0.04719679]
[1724737844659,10.8418,159.62,159.59,0.04719679]
[1724737845655,3.1318,159.62,159.59,0.04719679]
[1724737845854,3.1318,159.62,159.59,3.17939679]
[1724737846262,3.1318,159.62,159.59,0.04719679]
[1724737848654,10.842,159.6,159.59,0.04719679]
[1724737848963,7.71,159.6,159.51,5.0502]
[1724737849260,7.71,159.56,159.51,5.0502]
[1724737849760,0.04073541,159.55,159.52,0.04761027]
[1724737849959,0.04073541,159.55,159.53,3.1332]
[1724737850156,0.04073541,159.55,159.52,7.75761027]
[1724737851059,0.04073541,159.55,159.54,3.1332]
[1724737860864,0.04073541,159.55,159.54,6.17325609]
[1724737863062,0.04073541,159.55,159.54,6.17285217]
[1724737863656,3.1316,159.62,159.58,3.1323]
[1724737863861,3.09312733,159.63,159.56,7.71]
[1724737864067,7.71,159.63,159.57,1.2441]
[1724737864264,10.82932336,159.63,159.57,1.2441]
[1724737864657,13.96092336,159.63,159.59,3.132]
[1724737864863,3.11932336,159.63,159.58,0.04399526]
[1724737865058,7.71,159.64,159.58,7.75399526]
[1724737866357,10.8413,159.64,159.6,3.1319]
[1724737868173,3.1314,159.63,159.59,3.1321]
[1724737868473,7.71,159.63,159.58,0.04399526]
[1724737868671,10.8415,159.63,159.58,3.17619526]
[1724737868868,1.2642,159.66,159.58,0.04399526]
[1724737869072,7.71,159.64,159.58,0.04399526]
[1724737869271,10.8414,159.64,159.6,3.132]
[1724737869973,3.1314,159.64,159.6,3.132]
[1724737871175,3.1314,159.63,159.59,3.1322]
[1724737871471,10.8414,159.63,159.59,3.1322]
[1724737873370,10.8414,159.63,159.58,0.04399526]
[1724737873575,10.8413,159.64,159.6,3.1319]
[1724737874576,3.1314,159.63,159.6,3.1319]
[1724737875978,10.8413,159.64,159.6,3.1319]
[1724737876273,3.1313,159.64,159.6,3.1319]
[1724737878879,10.841,159.65,159.61,3.1318]
[1724737879083,10.841,159.65,159.61,3.1718575]
[1724737879575,3.131,159.65,159.61,3.1718575]
[1724737879775,12.1051,159.66,159.62,3.1316]
[1724737880275,8.9742,159.66,159.62,3.1316]
[1724737881274,3.131,159.65,159.62,3.1316]
[1724737881476,8.9742,159.66,159.63,3.1314]
[1724737881477,7.71,159.66,159.63,3.1314]
[1724737881675,65.04939951,159.68,159.62,7.71]
[1724737882083,65.04939951,159.68,159.63,3.1313]
[1724737882084,3.1307,159.67,159.63,3.1313]
[1724737882481,10.8407,159.67,159.63,3.1313]
[1724737882877,3.1308,159.66,159.63,3.1313]
[1724737883782,10.8407,159.67,159.63,3.1313]
[1724737883978,10.8407,159.67,159.63,3.17088801]
[1724737884181,7.71,159.67,159.63,3.17088801]
[1724737884993,7.71,159.66,159.63,0.03958801]
[1724737885186,7.71,159.64,159.63,0.03958801]
[1724737885585,10.8412,159.64,159.63,0.03958801]
[1724737887784,10.8412,159.64,159.58,3.1323]
[1724737887785,3.1319,159.61,159.58,3.1323]
[1724737887985,7.71,159.61,159.57,3.1326]
[1724737888576,3.132,159.6,159.56,3.1327]
[1724737888780,3.17557612,159.6,159.56,3.17645782]
[1724737891685,0.04357612,159.6,159.57,3.1326]
[1724737892491,3.17557612,159.6,159.56,3.17645782]
[1724737893279,3.17557612,159.6,159.57,3.1326]
[1724737894282,0.04357612,159.6,159.57,3.1326]
[1724737894489,0.04357612,159.6,159.58,3.1323]
[1724737894691,0.04357612,159.6,159.58,7.71]
[1724737895189,0.04357612,159.6,159.59,10.8422]
[1724737896987,7.75357612,159.6,159.56,0.04375782]
[1724737897778,7.71,159.59,159.56,0.04375782]
[1724737898891,10.8426,159.57,159.56,0.04375782]
[1724737903086,7.71,159.57,159.51,3.74]
[1724737903282,7.71,159.53,159.49,1.2171]
[1724737904091,10.89144343,159.53,159.49,1.25840236]
[1724737906588,10.89144343,159.53,159.49,4.39250236]
[1724737907295,7.75794343,159.53,159.49,4.39250236]
[1724737908196,10.89134343,159.53,159.49,4.39250236]
[1724737910191,0.04794343,159.53,159.49,0.04130236]
[1724737910386,7.71,159.5,159.49,0.04130236]
[1724737910994,10.8438,159.51,159.49,0.04130236]
[1724737911700,7.71,159.51,159.49,0.04130236]
[1724737913000,0.04794343,159.53,159.49,0.04130236]
[1724737914101,0.04794343,159.53,159.5,3.1338]
[1724737916698,7.71,159.52,159.49,3.17540236]
[1724737916899,7.71,159.51,159.49,0.04130236]
[1724737921599,10.8438,159.51,159.49,0.04130236]
[1724737923704,7.71,159.5,159.49,0.04130236]
[1724737925406,3.1336,159.52,159.49,0.04130236]
[1724737925597,7.71,159.51,159.49,0.04130236]
[1724737925796,3.18134343,159.53,159.49,3.17540236]
[1724737926011,0.04794343,159.53,159.49,0.04130236]
[1724737926908,0.04794343,159.53,159.5,3.1338]
[1724737929008,3.18134343,159.53,159.5,3.1338]
[1724737929508,7.71,159.52,159.5,3.1338]
[1724737930809,0.04794343,159.53,159.51,3.1338]
[1724737931407,0.04794343,159.53,159.49,0.04130236]
[1724737931610,7.71,159.52,159.5,3.1339]
[1724737938713,0.04794343,159.53,159.51,3.1337]
[1724737938901,7.71,159.52,159.51,3.1337]
[1724737940012,7.71,159.52,159.5,3.1339]
[1724737941907,0.04794343,159.53,159.49,0.04130236]
[1724737941908,7.71,159.51,159.49,3.17540236]
[1724737945606,7.71,159.51,159.49,0.04130236]
[1724737946021,30.84,159.5,159.37,69.18685406]
[1724737946319,3.1356,159.42,159.37,4.4051]
[1724737946617,7.71,159.41,159.37,1.2687]
[1724737947016,0.04693255,159.41,159.37,9.02454898]
[1724737948415,0.04693255,159.41,159.4,3.1359]
[1724737959431,0.04693255,159.41,159.39,3.1361]
[1724737959737,0.04693255,159.41,159.37,0.04584898]
[1724737959738,7.71,159.4,159.37,0.04584898]
[1724737959941,3.18283255,159.41,159.37,0.04584898]
[1724737960124,7.71,159.38,159.37,0.04584898]
[1724737962731,3.18283255,159.41,159.37,7.75584898]
[1724737962732,0.04693255,159.41,159.37,7.75584898]
[1724737963236,0.04693255,159.41,159.39,3.136]
[1724737969034,0.04693255,159.41,159.38,3.1361]
[1724737970136,7.75693255,159.41,159.38,3.1361]
[1724737970640,10.89273255,159.41,159.37,3.18234898]
[1724737975839,7.75693255,159.41,159.38,3.1363]
[1724737981155,7.75693255,159.41,159.37,0.04584898]
[1724737981156,0.04693255,159.41,159.37,0.04584898]
[1724737981343,0.04693255,159.41,159.39,7.71]
[1724737981845,0.04693255,159.41,159.4,3.1359]
[1724737991261,7.75693255,159.41,159.37,0.04584898]
[1724737991462,7.71,159.39,159.37,0.04584898]
[1724737992462,7.71,159.4,159.37,3.18224898]
[1724737995269,0.04693255,159.41,159.38,3.1363]
[1724737996766,0.04693255,159.41,159.38,7.71]
[1724737997767,0.04693255,159.41,159.4,3.1359]
[1724738003469,3.1346,159.47,159.4,7.71]
[1724738003669,3.1346,159.47,159.42,7.71]
[1724738003871,7.71,159.48,159.42,7.71]
[1724738004263,10.8444,159.48,159.43,3.1352]
[1724738004471,0.04132651,159.47,159.44,0.04083125]
[1724738004872,0.04132651,159.47,159.44,3.17593125]
[1724738007875,0.04132651,159.47,159.45,3.1349]
[1724738008175,0.04132651,159.47,159.44,0.04083125]
[1724738008176,0.04132651,159.47,159.44,7.75083125]
[1724738008874,0.04132651,159.47,159.46,3.1347]
[1724738012873,0.04132651,159.47,159.45,3.1349]
[1724738013275,7.71,159.46,159.44,0.04083125]
[1724738013771,0.04132651,159.47,159.44,0.04083125]
[1724738013772,7.71,159.45,159.44,0.04083125]
[1724738014878,3.1349,159.46,159.44,0.04083125]
[1724738015073,10.8449,159.46,159.44,0.04083125]
[1724738016366,7.71,159.46,159.44,0.04083125]
[1724738016871,10.8449,159.46,159.44,0.04083125]
[1724738017266,3.1349,159.45,159.44,0.04083125]
[1724738018778,3.1354,159.43,159.36,1.1979]
[1724738018973,7.71,159.42,159.37,6.82171417]
[1724738019173,7.71,159.42,159.38,3.06171417]
[1724738019879,7.75174781,159.42,159.38,6.23896988]
[1724738020180,7.75174781,159.42,159.38,3.17725571]
[1724738020379,0.04174781,159.42,159.38,3.17725571]
[1724738022482,0.04174781,159.42,159.38,0.04105571]
[1724738022483,7.71,159.41,159.38,0.04105571]
[1724738022782,7.71,159.41,159.38,3.10263034]
[1724738025173,7.71,159.41,159.38,0.04105571]
[1724738025374,7.71,159.41,159.38,3.10297005]
[1724738025780,3.17734781,159.42,159.38,0.04105571]
[1724738025988,10.88734781,159.42,159.38,0.04105571]
[1724738026184,7.75174781,159.42,159.38,3.17725571]
[1724738026770,0.04174781,159.42,159.38,3.17725571]
[1724738028276,7.75174781,159.42,159.38,3.17725571]
[1724738032084,7.71,159.4,159.38,0.04105571]
[1724738033283,10.8459,159.4,159.38,0.04105571]
[1724738035779,7.71,159.39,159.38,0.04105571]
[1724738036779,10.8461,159.39,159.38,0.04105571]
[1724738039392,3.1361,159.39,159.38,0.04105571]
[1724738039687,10.8461,159.39,159.38,0.04105571]
[1724738040689,3.1361,159.39,159.38,0.04105571]
[1724738045093,10.8461,159.4,159.38,0.04105571]
[1724738050894,3.1361,159.39,159.38,0.04105571]
[1724738051095,0.04174781,159.42,159.38,0.04105571]
[1724738051497,7.71,159.41,159.38,0.04105571]
[1724738051699,0.04174781,159.42,159.38,0.04105571]
[1724738051899,7.71,159.41,159.38,0.04105571]
[1724738052294,7.71,159.4,159.38,0.04105571]
[1724738053394,10.846,159.4,159.38,0.04105571]
[1724738055604,3.136,159.4,159.38,0.04105571]
[1724738055808,7.71,159.39,159.38,0.04105571]
[1724738056901,3.136,159.4,159.38,0.04105571]
[1724738057116,7.71,159.39,159.38,0.04105571]
[1724738059418,3.1358,159.41,159.38,0.04105571]
[1724738059611,7.71,159.39,159.38,0.04105571]
[1724738060320,10.8461,159.39,159.38,0.04105571]
[1724738060811,3.1361,159.39,159.38,0.04105571]
[1724738061011,10.8461,159.39,159.38,0.04105571]
[1724738061413,3.1364,159.38,159.34,3.1371]
[1724738061618,7.71,159.35,159.34,3.1371]
[1724738062823,0.04121579,159.36,159.34,3.1371]
[1724738064422,7.71,159.35,159.33,1.36146086]
[1724738066417,7.71,159.35,159.33,4.49876086]
[1724738067124,7.71,159.35,159.33,3.17956086]
[1724738068626,7.71,159.35,159.33,0.04226086]
[1724738072727,0.04121579,159.36,159.33,0.04226086]
[1724738074029,0.04121579,159.36,159.33,3.17956086]
[1724738074531,10.88791579,159.36,159.33,0.04226086]
[1724738075219,7.75121579,159.36,159.33,0.04226086]
[1724738080031,7.71,159.34,159.33,0.04226086]
[1724738081533,10.8471,159.34,159.33,0.04226086]
[1724738094937,3.1371,159.34,159.33,0.04226086]
[1724738095238,7.71,159.34,159.33,0.04226086]
[1724738097233,3.17801579,159.36,159.33,0.04226086]
[1724738097436,7.71,159.35,159.33,0.04226086]
[1724738098934,10.88801579,159.36,159.33,0.04226086]
[1724738100040,0.04121579,159.36,159.33,0.04226086]
[1724738101545,0.04121579,159.36,159.34,3.137]
[1724738105537,7.75121579,159.36,159.34,3.137]
[1724738108749,7.75121579,159.36,159.33,3.17956086]
[1724738109344,10.88791579,159.36,159.33,3.17956086]
[1724738111351,5.41381591,159.35,159.33,3.17956086]
[1724738111555,5.41381591,159.34,159.33,0.04226086]
[1724738114148,5.41381591,159.34,159.33,3.17956086]
[1724738114755,7.75121579,159.36,159.33,3.17956086]
[1724738114960,5.41385484,159.35,159.33,3.17956086]
[1724738115253,5.41385484,159.34,159.33,3.17956086]
[1724738117359,0.04121579,159.36,159.33,3.17956086]